fUST/lending_fUST_20250401
["ID","MTS","AMOUNT","RATE_DAILY","PERIOD"]
[356973042,1743511864855,-4310.96,0.00020821,2]
[356973043,1743511864865,-2071.97,0.00020821,2]
[356973044,1743511864876,-898.84,0.00020821,2]
[356973045,1743511864885,-500.0,0.00020821,2]
[356973046,1743511864895,-1742.34,0.00020821,2]
[356973047,1743511864905,-594.35,0.00020821,2]
[356973048,1743511864914,-505.77,0.00020821,2]
[356973049,1743511864924,-11519.68,0.00020821,2]
[356973050,1743511864934,-3396.4,0.00020821,2]
[356973051,1743511864944,-500.0,0.00020821,2]
[356973052,1743511864955,-588.38,0.00020821,2]
[356973053,1743511864965,-597.82,0.00020821,2]
[356973054,1743511865093,-500.0,0.00020821,2]
[356973055,1743511865103,-6013.25,0.00020821,2]
[356973056,1743511865114,-500.0,0.00020821,2]
[356973057,1743511865126,-698.88,0.00020821,2]
[356973058,1743511865137,-926.1,0.00020821,2]
[356973059,1743511865147,-2627.75,0.00020821,2]
[356973060,1743511865158,-2688.77,0.00020821,2]
[356973061,1743511865167,-1319.31,0.00020821,2]
[356973062,1743511865178,-2867.87,0.00020821,2]
[356973063,1743511865188,-3629.52,0.00020821,2]
[356973064,1743511865198,-907.13,0.00020821,2]
[356973065,1743511865209,-770.9,0.00020821,2]
[356973066,1743511865219,-584.69,0.00020821,2]
[356973067,1743511865228,-543.74,0.00020821,2]
[356973068,1743511865237,-1161.33,0.00020821,2]
[356973069,1743511865247,-1377.78,0.00020821,2]
[356973070,1743511865256,-814.41,0.00020821,2]
[356973071,1743511865266,-2088.0,0.00020821,2]
[356973072,1743511865276,-539.2,0.00020821,2]
[356973073,1743511865285,-820.58,0.00020821,2]
[356973074,1743511865295,-500.0,0.00020821,2]
[356973075,1743511865306,-566.70839937,0.00020821,2]
[356973076,1743511865316,-5678.07,0.00020821,2]
[356973077,1743511865326,-285.36688823,0.00020821,2]
[356973078,1743511865337,-500.0,0.00020821,2]
[356973079,1743511865347,-1230.57,0.00020821,2]
[356973080,1743511865356,-932.68,0.00020821,2]
[356973081,1743511865366,-968.43,0.00020821,2]
[356973082,1743511865376,-590.49,0.00020821,2]
[356973083,1743511865386,-500.0,0.00020821,2]
[356973084,1743511865395,-1446.65,0.00020821,2]
[356973085,1743511865404,-500.0,0.00020821,2]
[356973086,1743511865414,-3087.28,0.00020821,2]
[356973087,1743511865424,-1474.18,0.00020821,2]
[356973088,1743511865433,-1315.11,0.00020821,2]
[356973089,1743511865443,-3408.287,0.00020824,2]
[356973090,1743511865453,-1921.063722,0.00020982,2]
[356973091,1743511865463,-334.237075,0.00020982,2]
[356973092,1743511865473,-150.03,0.00021,2]
[356973093,1743511865482,-2550.0,0.00021,2]
[356973094,1743511865490,-534.12,0.00021,2]
[356973095,1743511865500,-152.39236814,0.00021,2]
[356973096,1743511865510,-500.0,0.00021,2]
[356973097,1743511865520,-500.0,0.00021,2]
[356973098,1743511865530,-158.10930135,0.00021,2]
[356973099,1743511865539,-152.19469126,0.00021,2]
[356973100,1743511865549,-150.0,0.0002101,2]
[356973101,1743511865559,-542.0,0.0002101,2]
[356973102,1743511865569,-2258.0,0.0002101,2]
[356973103,1743511865579,-1916.0,0.0002101,2]
[356973104,1743511865588,-2684.25319656,0.00021036,2]
[356973105,1743511865598,-287.9,0.00021095,2]
[356973106,1743511865608,-500.0,0.00021095,2]
[356973107,1743511865618,-500.0,0.00021095,2]
[356973108,1743511865627,-500.0,0.00021095,2]
[356973109,1743511865638,-559.76,0.00021095,2]
[356973110,1743511865648,-345.32,0.00021095,2]
[356973111,1743511865658,-812.55,0.00021095,2]
[356973112,1743511865668,-785.36,0.00021095,2]
[356973113,1743511865677,-500.0,0.00021095,2]
[356973114,1743511865687,-791.06,0.00021095,2]
[356973115,1743511865697,-500.0,0.00021095,2]
[356973116,1743511865707,-500.0,0.00021095,2]
[356973117,1743511865716,-1670.24,0.00021095,2]
[356973118,1743511865726,-707.22,0.00021095,2]
[356973119,1743511865736,-500.0,0.00021095,2]
[356973120,1743511865747,-901.5,0.00021095,2]
[356973121,1743511865756,-864.64,0.00021095,2]
[356973122,1743511865766,-619.0,0.00021095,2]
[356973123,1743511865777,-896.88,0.00021095,2]
[356973124,1743511865787,-1772.12,0.00021095,2]
[356973125,1743511865797,-596.7,0.00021095,2]
[356973126,1743511865807,-500.0,0.00021095,2]
[356973127,1743511865817,-500.0,0.00021095,2]
[356973128,1743511865826,-3356.11,0.00021095,2]
[356973129,1743511865836,-540.11,0.00021095,2]
[356973130,1743511865846,-640.2,0.00021095,2]
[356973131,1743511865857,-564.61,0.00021095,2]
[356973132,1743511865867,-1033.56,0.00021095,2]
[356973133,1743511865877,-532.66,0.00021095,2]
[356973134,1743511865887,-2934.38,0.00021095,2]
[356973135,1743511865898,-987.59,0.00021095,2]
[356973136,1743511865908,-500.0,0.00021095,2]
[356973137,1743511865918,-4154.16,0.00021095,2]
[356973138,1743511865929,-599.43,0.00021095,2]
[356973139,1743511865939,-500.0,0.00021095,2]
[356973140,1743511865949,-686.03,0.00021095,2]
[356973141,1743511865959,-549.89,0.00021095,2]
[356973142,1743511865969,-635.45,0.00021095,2]
[356973143,1743511865979,-618.27,0.00021095,2]
[356973144,1743511865989,-500.0,0.00021095,2]
[356973145,1743511865999,-500.0,0.00021095,2]
[356973146,1743511866008,-618.55,0.00021095,2]
[356973147,1743511866018,-3733.39,0.00021095,2]
[356973148,1743511866028,-552.2,0.00021095,2]
[356973149,1743511866039,-589.15,0.00021095,2]
[356973150,1743511866049,-2903.61,0.00021095,2]
[356973151,1743511866059,-500.0,0.00021095,2]
[356973152,1743511866069,-4746.78,0.00021095,2]
[356973153,1743511866079,-500.0,0.00021095,2]
[356973154,1743511866088,-500.0,0.00021095,2]
[356973155,1743511866098,-1427.21,0.00021095,2]
[356973156,1743511866108,-829.33,0.00021095,2]
[356973157,1743511866118,-1831.33,0.00021095,2]
[356973158,1743511866131,-500.0,0.00021095,2]
[356973159,1743511866141,-901.12,0.00021095,2]
[356973160,1743511866150,-10198.4,0.00021095,2]
[356973161,1743511866160,-1956.22,0.00021095,2]
[356973162,1743511866170,-562.84416235,0.00021095,2]
[356973163,1743511866180,-539.81,0.00021095,2]
[356973164,1743511866190,-607.67,0.00021095,2]
[356973165,1743511866202,-4310.96,0.00021095,2]
[356973166,1743511866212,-2071.97,0.00021095,2]
[356973167,1743511866222,-898.84,0.00021095,2]
[356973168,1743511866232,-500.0,0.00021095,2]
[356973169,1743511866242,-1742.34,0.00021095,2]
[356973170,1743511866251,-594.35,0.00021095,2]
[356973171,1743511866261,-505.77,0.00021095,2]
[356973172,1743511866271,-11519.68,0.00021095,2]
[356973173,1743511866281,-3396.4,0.00021095,2]
[356973174,1743511866291,-500.0,0.00021095,2]
[356973175,1743511866301,-588.38,0.00021095,2]
[356973176,1743511866311,-597.82,0.00021095,2]
[356973177,1743511866320,-500.0,0.00021095,2]
[356973178,1743511866330,-6013.25,0.00021095,2]
[356973179,1743511866340,-500.0,0.00021095,2]
[356973180,1743511866350,-698.88,0.00021095,2]
[356973181,1743511866360,-926.1,0.00021095,2]
[356973182,1743511866370,-2627.75,0.00021095,2]
[356973183,1743511866380,-2688.77,0.00021095,2]
[356973184,1743511866390,-1319.31,0.00021095,2]
[356973185,1743511866400,-2867.87,0.00021095,2]
[356973186,1743511866410,-3629.52,0.00021095,2]
[356973187,1743511866420,-907.13,0.00021095,2]
[356973188,1743511866430,-770.9,0.00021095,2]
[356973189,1743511866440,-584.69,0.00021095,2]
[356973190,1743511866449,-543.74,0.00021095,2]
[356973191,1743511866459,-1161.33,0.00021095,2]
[356973192,1743511866468,-1377.78,0.00021095,2]
[356973193,1743511866478,-814.41,0.00021095,2]
[356973194,1743511866488,-2088.0,0.00021095,2]
[356973195,1743511866497,-539.2,0.00021095,2]
[356973196,1743511866507,-820.58,0.00021095,2]
[356973197,1743511866517,-500.0,0.00021095,2]
[356973198,1743511866527,-5678.07,0.00021095,2]
[356973199,1743511866537,-1230.57,0.00021095,2]
[356973200,1743511866547,-343.73818304,0.00021095,2]
[356973201,1743511866556,-932.68,0.00021095,2]
[356973202,1743511866566,-968.43,0.00021095,2]
[356973203,1743511866576,-590.49,0.00021095,2]
[356973204,1743511866587,-500.0,0.00021095,2]
[356973205,1743511866596,-1446.65,0.00021095,2]
[356973206,1743511866606,-500.0,0.00021095,2]
[356973207,1743511866615,-3087.28,0.00021095,2]
[356973208,1743511866625,-1474.18,0.00021095,2]
[356973209,1743511866634,-1315.11,0.00021095,2]
[356973210,1743511866643,-156.74763921,0.00021137,2]
[356973211,1743511866653,-2550.0,0.00021137,2]
[356973212,1743511866663,-500.0,0.00021137,2]
[356973213,1743511866672,-500.0,0.00021137,2]
[356973214,1743511866682,-500.0,0.00021169,2]
[356973215,1743511866691,-500.0,0.00021215,2]
[356973216,1743511866701,-500.58770301,0.00021215,2]
[356973217,1743511866710,-500.0,0.00021215,2]
[356973218,1743511866720,-500.0,0.00021215,2]
[356973219,1743511866730,-500.0,0.00021215,2]
[356973220,1743511866739,-500.0,0.00021215,2]
[356973221,1743511866749,-500.0,0.00021215,2]
[356973222,1743511866759,-500.0,0.00021215,2]
[356973223,1743511866768,-500.0,0.00021215,2]
[356973224,1743511866778,-555.83605063,0.00021215,2]
[356973225,1743511866788,-500.0,0.00021215,2]
[356973226,1743511866799,-500.0,0.00021215,2]
[356973227,1743511866809,-500.0,0.00021215,2]
[356973228,1743511866819,-500.0,0.00021215,2]
[356973229,1743511866829,-500.0,0.00021215,2]
[356973230,1743511866838,-500.28637164,0.00021215,2]
[356973231,1743511866849,-500.0,0.00021215,2]
[356973232,1743511866859,-500.0,0.00021227,2]
[356973233,1743511866870,-2550.0,0.00021274,2]
[356973234,1743511866881,-500.0,0.00021274,2]
[356973235,1743511866893,-500.0,0.00021274,2]
[356973236,1743511866902,-712.61145097,0.00021314,3]
[356973237,1743511866913,-500.40108267,0.00021335,2]
[356973238,1743511866923,-592.41200924,0.00021335,2]
[356973239,1743511866932,-500.0,0.00021335,2]
[356973240,1743511866942,-501.56775825,0.00021335,2]
[356973241,1743511866952,-500.0,0.00021335,2]
[356973242,1743511866961,-500.0,0.00021335,2]
[356973243,1743511866971,-500.32347058,0.00021335,2]
[356973244,1743511866980,-500.0,0.00021335,2]
[356973245,1743511866990,-500.0,0.00021335,2]
[356973246,1743511866999,-500.0,0.00021335,2]
[356973247,1743511867009,-500.0,0.00021336,2]
[356973248,1743511867018,-500.0,0.0002134,2]
[356973249,1743511867028,-464.69554656,0.0002134,2]
[356973250,1743511867038,-500.0,0.00021351,2]
[356973251,1743511867051,-500.0,0.00021351,2]
[356973252,1743511867060,-500.0,0.00021362,2]
[356973253,1743511867070,-497.07,0.00021369,2]
[356973254,1743511867079,-500.0,0.00021369,2]
[356973255,1743511867089,-500.0,0.00021369,2]
[356973256,1743511867099,-559.76,0.00021369,2]
[356973257,1743511867109,-812.55,0.00021369,2]
[356973258,1743511867119,-785.36,0.00021369,2]
[356973259,1743511867132,-500.0,0.00021369,2]
[356973260,1743511867142,-791.06,0.00021369,2]
[356973261,1743511867151,-500.0,0.00021369,2]
[356973262,1743511867162,-500.0,0.00021369,2]
[356973263,1743511867174,-1670.24,0.00021369,2]
[356973264,1743511867183,-707.22,0.00021369,2]
[356973265,1743511867194,-500.0,0.00021369,2]
[356973266,1743511867205,-901.5,0.00021369,2]
[356973267,1743511867214,-864.64,0.00021369,2]
[356973268,1743511867225,-619.0,0.00021369,2]
[356973269,1743511867234,-896.88,0.00021369,2]
[356973270,1743511867244,-1772.12,0.00021369,2]
[356973271,1743511867255,-596.7,0.00021369,2]
[356973272,1743511867265,-500.0,0.00021369,2]
[356973273,1743511867274,-500.0,0.00021369,2]
[356973274,1743511867285,-3356.11,0.00021369,2]
[356973275,1743511867296,-540.11,0.00021369,2]
[356973276,1743511867305,-640.2,0.00021369,2]
[356973277,1743511867315,-564.61,0.00021369,2]
[356973278,1743511867325,-1033.56,0.00021369,2]
[356973279,1743511867335,-532.66,0.00021369,2]
[356973280,1743511867344,-2934.38,0.00021369,2]
[356973281,1743511867354,-987.59,0.00021369,2]
[356973282,1743511867363,-242.76,0.00021369,2]
[356973283,1743511867373,-4154.16,0.00021369,2]
[356973284,1743511867383,-599.43,0.00021369,2]
[356973285,1743511867392,-500.0,0.00021369,2]
[356973286,1743511867402,-686.03,0.00021369,2]
[356973287,1743511867411,-549.89,0.00021369,2]
[356973288,1743511867421,-635.45,0.00021369,2]
[356973289,1743511867430,-618.27,0.00021369,2]
[356973290,1743511867439,-500.0,0.00021369,2]
[356973291,1743511867449,-461.07796609,0.00021369,2]
[356973292,1743511867461,-618.55,0.00021369,2]
[356973293,1743511867471,-3733.39,0.00021369,2]
[356973294,1743511867481,-552.2,0.00021369,2]
[356973295,1743511867491,-589.15,0.00021369,2]
[356973296,1743511867501,-2903.61,0.00021369,2]
[356973297,1743511867511,-500.0,0.00021369,2]
[356973298,1743511867521,-4746.78,0.00021369,2]
[356973299,1743511867532,-270.63073275,0.00021369,2]
[356973300,1743511867543,-500.0,0.00021369,2]
[356973301,1743511867553,-1427.21,0.00021369,2]
[356973302,1743511867563,-829.33,0.00021369,2]
[356973303,1743511867683,-1831.33,0.00021369,2]
[356973304,1743511867693,-500.0,0.00021369,2]
[356973305,1743511867703,-901.12,0.00021369,2]
[356973306,1743511867712,-10198.4,0.00021369,2]
[356973307,1743511867722,-1956.22,0.00021369,2]
[356973308,1743511867731,-539.81,0.00021369,2]
[356973309,1743511867741,-607.67,0.00021369,2]
[356973310,1743511867750,-4310.96,0.00021369,2]
[356973311,1743511867759,-2071.97,0.00021369,2]
[356973312,1743511867769,-898.84,0.00021369,2]
[356973313,1743511867778,-500.0,0.00021369,2]
[356973314,1743511867788,-1742.34,0.00021369,2]
[356973315,1743511867798,-594.35,0.00021369,2]
[356973316,1743511867807,-505.77,0.00021369,2]
[356973317,1743511867817,-11519.68,0.00021369,2]
[356973318,1743511867827,-3396.4,0.00021369,2]
[356973319,1743511867837,-500.0,0.00021369,2]
[356973320,1743511867846,-588.38,0.00021369,2]
[356973321,1743511867856,-597.82,0.00021369,2]
[356973322,1743511867866,-500.0,0.00021369,2]
[356973323,1743511867876,-6013.25,0.00021369,2]
[356973324,1743511867885,-500.0,0.00021369,2]
[356973325,1743511867895,-698.88,0.00021369,2]
[356973326,1743511867904,-926.1,0.00021369,2]
[356973327,1743511867914,-2627.75,0.00021369,2]
[356973328,1743511867924,-2688.77,0.00021369,2]
[356973329,1743511867934,-1319.31,0.00021369,2]
[356973330,1743511867944,-2867.87,0.00021369,2]
[356973331,1743511867954,-3629.52,0.00021369,2]
[356973332,1743511867964,-907.13,0.00021369,2]
[356973333,1743511867973,-770.9,0.00021369,2]
[356973334,1743511867983,-584.69,0.00021369,2]
[356973335,1743511867992,-543.74,0.00021369,2]
[356973336,1743511868002,-1161.33,0.00021369,2]
[356973337,1743511868012,-1377.78,0.00021369,2]
[356973338,1743511868021,-814.41,0.00021369,2]
[356973339,1743511868031,-2088.0,0.00021369,2]
[356973340,1743511868041,-539.2,0.00021369,2]
[356973341,1743511868051,-820.58,0.00021369,2]
[356973342,1743511868061,-500.0,0.00021369,2]
[356973343,1743511868071,-5678.07,0.00021369,2]
[356973344,1743511868081,-1230.57,0.00021369,2]
[356973345,1743511868091,-932.68,0.00021369,2]
[356973346,1743511868101,-968.43,0.00021369,2]
[356973347,1743511868111,-590.49,0.00021369,2]
[356973348,1743511868120,-500.0,0.00021369,2]
[356973349,1743511868134,-1446.65,0.00021369,2]
[356973350,1743511868143,-500.0,0.00021369,2]
[356973351,1743511868153,-3087.28,0.00021369,2]
[356973352,1743511868162,-1474.18,0.00021369,2]
[356973353,1743511868173,-1315.11,0.00021369,2]
[356973354,1743511868183,-2550.0,0.00021411,2]
[356973355,1743511868193,-500.0,0.00021411,2]
[356973356,1743511868204,-500.0,0.00021411,2]
[356973357,1743511868214,-215.0738,0.00021461,2]
[356973358,1743511868224,-500.0,0.00021478,2]
[356973359,1743511868234,-500.0,0.00021486,2]
[356973360,1743511868243,-500.0,0.00021486,2]
[356973361,1743511868253,-501.96099599,0.00021486,2]
[356973362,1743511868264,-1921.063722,0.00021488,2]
[356973363,1743511868274,-334.237075,0.00021488,2]
[356973364,1743511868284,-2550.0,0.00021548,2]
[356973365,1743511868294,-500.0,0.00021548,2]
[356973366,1743511868304,-500.0,0.00021548,2]
[356973367,1743511868314,-250.7343374,0.00021597,2]
[356973368,1743511868324,-184.67724496,0.00021612,2]
[356973369,1743511868334,-9121.04474173,0.00021643,3]
[356973370,1743511868343,-500.0,0.00021643,2]
[356973371,1743511868352,-153.04,0.00021643,2]
[356973372,1743511868363,-559.76,0.00021643,2]
[356973373,1743511868373,-812.55,0.00021643,2]
[356973374,1743511868383,-785.36,0.00021643,2]
[356973375,1743511868393,-500.0,0.00021643,2]
[356973376,1743511868404,-791.06,0.00021643,2]
[356973377,1743511868414,-500.0,0.00021643,2]
[356973378,1743511868425,-500.0,0.00021643,2]
[356973379,1743511868435,-1670.24,0.00021643,2]
[356973380,1743511868447,-707.22,0.00021643,2]
[356973381,1743511868458,-500.0,0.00021643,2]
[356973382,1743511868469,-901.5,0.00021643,2]
[356973383,1743511868478,-864.64,0.00021643,2]
[356973384,1743511868488,-619.0,0.00021643,2]
[356973385,1743511868498,-896.88,0.00021643,2]
[356973386,1743511868508,-1772.12,0.00021643,2]
[356973387,1743511868517,-596.7,0.00021643,2]
[356973388,1743511868527,-202.35368038,0.00021643,2]
[356973389,1743511868536,-500.0,0.00021643,2]
[356973390,1743511868545,-3356.11,0.00021643,2]
[356973391,1743511868555,-540.11,0.00021643,2]
[356973392,1743511868565,-640.2,0.00021643,2]
[356973393,1743511868576,-564.61,0.00021643,2]
[356973394,1743511868585,-1033.56,0.00021643,2]
[356973395,1743511868594,-532.66,0.00021643,2]
[356973396,1743511868604,-2934.38,0.00021643,2]
[356973397,1743511868613,-987.59,0.00021643,2]
[356973398,1743511868623,-4154.16,0.00021643,2]
[356973399,1743511868633,-599.43,0.00021643,2]
[356973400,1743511868643,-500.0,0.00021643,2]
[356973401,1743511868653,-686.03,0.00021643,2]
[356973402,1743511868663,-549.89,0.00021643,2]
[356973403,1743511868673,-635.45,0.00021643,2]
[356973404,1743511868682,-618.27,0.00021643,2]
[356973405,1743511868692,-500.0,0.00021643,2]
[356973406,1743511868702,-618.55,0.00021643,2]
[356973407,1743511868711,-3733.39,0.00021643,2]
[356973408,1743511868721,-552.2,0.00021643,2]
[356973409,1743511868731,-589.15,0.00021643,2]
[356973410,1743511868741,-2903.61,0.00021643,2]
[356973411,1743511868751,-500.0,0.00021643,2]
[356973412,1743511868761,-4746.78,0.00021643,2]
[356973413,1743511868771,-435.84267295,0.00021643,2]
[356973414,1743511868781,-1427.21,0.00021643,2]
[356973415,1743511868791,-829.33,0.00021643,2]
[356973416,1743511868800,-1831.33,0.00021643,2]
[356973417,1743511868810,-606.30357655,0.00021643,2]
[356973418,1743511868821,-901.12,0.00021643,2]
[356973419,1743511868831,-10198.4,0.00021643,2]
[356973420,1743511868840,-1956.22,0.00021643,2]
[356973421,1743511868851,-539.81,0.00021643,2]
[356973422,1743511868864,-607.67,0.00021643,2]
[356973423,1743511868874,-4310.96,0.00021643,2]
[356973424,1743511868883,-2071.97,0.00021643,2]
[356973425,1743511868894,-898.84,0.00021643,2]
[356973426,1743511868903,-500.0,0.00021643,2]
[356973427,1743511868913,-1742.34,0.00021643,2]
[356973428,1743511868923,-594.35,0.00021643,2]
[356973429,1743511868932,-505.77,0.00021643,2]
[356973430,1743511868942,-11519.68,0.00021643,2]
[356973431,1743511868952,-3396.4,0.00021643,2]
[356973432,1743511868962,-500.0,0.00021643,2]
[356973433,1743511868972,-588.38,0.00021643,2]
[356973434,1743511868982,-597.82,0.00021643,2]
[356973435,1743511868991,-500.0,0.00021643,2]
[356973436,1743511869002,-6013.25,0.00021643,2]
[356973437,1743511869012,-254.48097718,0.00021643,2]
[356973438,1743511869021,-698.88,0.00021643,2]
[356973439,1743511869031,-926.1,0.00021643,2]
[356973440,1743511869041,-2627.75,0.00021643,2]
[356973441,1743511869051,-2688.77,0.00021643,2]
[356973442,1743511869061,-1319.31,0.00021643,2]
[356973443,1743511869071,-2867.87,0.00021643,2]
[356973444,1743511869081,-3629.52,0.00021643,2]
[356973445,1743511869091,-907.13,0.00021643,2]
[356973446,1743511869101,-770.9,0.00021643,2]
[356973447,1743511869110,-584.69,0.00021643,2]
[356973448,1743511869119,-543.74,0.00021643,2]
[356973449,1743511869132,-1161.33,0.00021643,2]
[356973450,1743511869142,-1377.78,0.00021643,2]
[356973451,1743511869152,-814.41,0.00021643,2]
[356973452,1743511869162,-2088.0,0.00021643,2]
[356973453,1743511869173,-539.2,0.00021643,2]
[356973454,1743511869183,-820.58,0.00021643,2]
[356973455,1743511869193,-500.0,0.00021643,2]
[356973456,1743511869202,-5678.07,0.00021643,2]
[356973457,1743511869213,-1230.57,0.00021643,2]
[356973458,1743511869222,-932.68,0.00021643,2]
[356973459,1743511869232,-968.43,0.00021643,2]
[356973460,1743511869243,-590.49,0.00021643,2]
[356973461,1743511869253,-500.0,0.00021643,2]
[356973462,1743511869263,-1446.65,0.00021643,2]
[356973463,1743511869273,-500.0,0.00021643,2]
[356973464,1743511869283,-3087.28,0.00021643,2]
[356973465,1743511869293,-1474.18,0.00021643,2]
[356973466,1743511869303,-1315.11,0.00021643,2]
[356973467,1743511869313,-2550.0,0.00021685,2]
[356973468,1743511869323,-500.0,0.00021685,2]
[356973469,1743511869333,-500.0,0.00021685,2]
[356973470,1743511869343,-2550.0,0.00021822,2]
[356973471,1743511869353,-500.0,0.00021822,2]
[356973472,1743511869363,-500.0,0.00021822,2]
[356973473,1743511869374,-712.61145097,0.00021866,3]
[356973474,1743511869384,-34268.69940717,0.00021917,3]
[356973475,1743511869394,-500.0,0.00021917,2]
[356973476,1743511869403,-559.76,0.00021917,2]
[356973477,1743511869413,-812.55,0.00021917,2]
[356973478,1743511869424,-785.36,0.00021917,2]
[356973479,1743511869434,-500.0,0.00021917,2]
[356973480,1743511869445,-791.06,0.00021917,2]
[356973481,1743511869456,-500.0,0.00021917,2]
[356973482,1743511869466,-500.0,0.00021917,2]
[356973483,1743511869477,-1670.24,0.00021917,2]
[356973484,1743511869488,-707.22,0.00021917,2]
[356973485,1743511869499,-500.0,0.00021917,2]
[356973486,1743511869510,-901.5,0.00021917,2]
[356973487,1743511869521,-864.64,0.00021917,2]
[356973488,1743511869531,-619.0,0.00021917,2]
[356973489,1743511869542,-896.88,0.00021917,2]
[356973490,1743511869555,-1772.12,0.00021917,2]
[356973491,1743511869566,-596.7,0.00021917,2]
[356973492,1743511869577,-500.0,0.00021917,2]
[356973493,1743511869587,-3356.11,0.00021917,2]
[356973494,1743511869597,-540.11,0.00021917,2]
[356973495,1743511869607,-640.2,0.00021917,2]
[356973496,1743511869617,-564.61,0.00021917,2]
[356973497,1743511869627,-1033.56,0.00021917,2]
[356973498,1743511869637,-532.66,0.00021917,2]
[356973499,1743511869647,-2934.38,0.00021917,2]
[356973500,1743511869656,-987.59,0.00021917,2]
[356973501,1743511869666,-4154.16,0.00021917,2]
[356973502,1743511869676,-599.43,0.00021917,2]
[356973503,1743511869686,-500.0,0.00021917,2]
[356973504,1743511869696,-686.03,0.00021917,2]
[356973505,1743511869706,-549.89,0.00021917,2]
[356973506,1743511869715,-635.45,0.00021917,2]
[356973507,1743511869724,-618.27,0.00021917,2]
[356973508,1743511869734,-500.0,0.00021917,2]
[356973509,1743511869744,-618.55,0.00021917,2]
[356973510,1743511869753,-3733.39,0.00021917,2]
[356973511,1743511869764,-552.2,0.00021917,2]
[356973512,1743511869774,-589.15,0.00021917,2]
[356973513,1743511869785,-2903.61,0.00021917,2]
[356973514,1743511869794,-500.0,0.00021917,2]
[356973515,1743511869805,-4746.78,0.00021917,2]
[356973516,1743511869815,-1427.21,0.00021917,2]
[356973517,1743511869824,-829.33,0.00021917,2]
[356973518,1743511869834,-1831.33,0.00021917,2]
[356973519,1743511869844,-901.12,0.00021917,2]
[356973520,1743511869854,-10198.4,0.00021917,2]
[356973521,1743511869864,-1956.22,0.00021917,2]
[356973522,1743511869874,-539.81,0.00021917,2]
[356973523,1743511869884,-607.67,0.00021917,2]
[356973524,1743511869893,-4310.96,0.00021917,2]
[356973525,1743511869903,-2071.97,0.00021917,2]
[356973526,1743511869912,-898.84,0.00021917,2]
[356973527,1743511869922,-500.0,0.00021917,2]
[356973528,1743511869931,-1742.34,0.00021917,2]
[356973529,1743511869941,-594.35,0.00021917,2]
[356973530,1743511869950,-505.77,0.00021917,2]
[356973531,1743511869960,-11519.68,0.00021917,2]
[356973532,1743511869970,-3396.4,0.00021917,2]
[356973533,1743511870094,-500.0,0.00021917,2]
[356973534,1743511870107,-588.38,0.00021917,2]
[356973535,1743511870119,-597.82,0.00021917,2]
[356973536,1743511870132,-500.0,0.00021917,2]
[356973537,1743511870143,-6013.25,0.00021917,2]
[356973538,1743511870153,-698.88,0.00021917,2]
[356973539,1743511870163,-926.1,0.00021917,2]
[356973540,1743511870174,-2627.75,0.00021917,2]
[356973541,1743511870185,-2688.77,0.00021917,2]